[Event "35th Roquetas Festival 2024"]
[Site "Roquetas de Mar"]
[Date "2024.01.03"]
[Round "2.23"]
[White "Vergara Anton, Diego"]
[Black "Shamatava, Nikolozi"]
[Result "1-0"]
[ECO "A46"]
[WhiteElo "2346"]
[BlackElo "2088"]
[Annotator "ChessBase"]
[PlyCount "101"]
[EventDate "2024.01.02"]
[EventType "swiss"]
[EventCountry "ESP"]
[SourceTitle "playchess.com"]
[Source "ChessBase"]
[SourceQuality "1"]
[TimeControl "5400+30"]

1. d4 {[%emt 0:02:07]} Nf6 {[%emt 0:00:11]} 2. Nf3 {[%emt 0:00:05]} e6 {[%emt 0:00:12]} 3. e3 {[%emt 0:00:14]} b6 {[%emt 0:04:20]} 4. Bd3 {[%emt 0:01:42]} Bb7 {[%emt 0:00:43]} 5. O-O {[%emt 0:00:29]} Be7 {[%emt 0:02:02]} 6. Qe2 {[%emt 0:03:34]} d5 {[%emt 0:06:10]} 7. c4 {[%emt 0:02:35]} O-O {[%emt 0:03:58]} 8. Nc3 {[%emt 0:00:26]} Nbd7 {[%emt 0:02:03]} 9. e4 {[%emt 0:04:17]} dxe4 {[%emt 0:00:19]} 10. Nxe4 {[%emt 0:00:07]} Nxe4 {[%emt 0:00:03]} 11. Bxe4 {[%emt 0:00:05]} Bxe4 {[%emt 0:00:05]} 12. Qxe4 {[%emt 0:00:03]} Nf6 {[%emt 0:00:32]} 13. Qe2 {[%emt 0:01:53]} c5 {[%emt 0:01:09]} 14. Rd1 {[%emt 0:00:17]} Qc7 {[%emt 0:01:24]} 15. b3 {[%emt 0:04:15]} Rfd8 {[%emt 0:05:18]} 16. Bb2 {[%emt 0:00:15]} Rac8 {[%emt 0:01:47]} 17. Rd3 {[%emt 0:03:11]} Nh5 {[%emt 0:07:25]} 18. g3 {[%emt 0:02:27]} Bf6 {[%emt 0:10:09]} 19. Rad1 {[%emt 0:01:59]} g6 {[%emt 0:21:41]} 20. d5 {[%emt 0:08:38]} exd5 {[%emt 0:00:49]} 21. cxd5 {[%emt 0:00:45]} Re8 {[%emt 0:06:51]} 22. Qc2 {[%emt 0:06:11]} Qd6 {[%emt 0:01:08]} 23. a4 {[%emt 0:04:46]} a6 {[%emt 0:06:12]} 24. Bxf6 {[%emt 0:00:38]} Nxf6 {[%emt 0:00:06]} 25. Qc4 {[%emt 0:03:31]} Ra8 {[%emt 0:01:38]} 26. Nd2 {[%emt 0:05:50]} Re5 {[%emt 0:01:21]} 27. Nf1 {[%emt 0:00:47]} Re4 {[%emt 0:01:02]} 28. Qc2 {[%emt 0:00:48]} b5 {[%emt 0:02:04]} 29. Rc3 {[%emt 0:02:15]} Rc8 {[%emt 0:04:49]} 30. Ne3 {[%emt 0:00:14]} Rb4 {[%emt 0:02:20]} 31. axb5 {[%emt 0:02:32]} axb5 {[%emt 0:00:10]} 32. Qc1 {[%emt 0:02:51]} Nd7 {[%emt 0:02:08]} 33. Kg2 {[%emt 0:06:54]} Re8 {[%emt 0:00:43]} 34. Nc2 {[%emt 0:01:32]} Rbe4 {[%emt 0:00:18]} 35. Re3 {[%emt 0:00:18]} Nf6 {[%emt 0:03:03]} 36. Qd2 {[%emt 0:01:05]} R8e5 {[%emt 0:01:15]} 37. Qa5 {[%emt 0:02:02]} Kg7 {[%emt 0:02:00]} 38. Rxe4 {[%emt 0:03:03]} Rxe4 {[%emt 0:00:17]} 39. Qc3 {[%emt 0:04:32]} h5 {[%emt 0:00:57]} 40. Ne3 {[%emt 0:01:25]} Kh7 {[%emt 0:00:54]} 41. h4 {[%emt 0:00:39]} Ng4 {[%emt 0:00:24]} 42. Nxg4 {[%emt 0:00:16]} Rxg4 {[%emt 0:00:16]} 43. Qf3 {[%emt 0:02:14]} Kg7 {[%emt 0:00:23]} 44. Qc3+ {[%emt 0:00:24]} Kh7 {[%emt 0:00:15]} 45. Qe3 {[%emt 0:00:24]} Rb4 {[%emt 0:00:54]} 46. Qe8 {[%emt 0:01:58]} Kg7 {[%emt 0:00:56]} 47. Qc6 {[%emt 0:00:19]} Qd8 {[%emt 0:00:01]} 48. d6 {[%emt 0:00:40]} Rd4 {[%emt 0:01:10]} 49. Rxd4 {[%emt 0:01:04]} cxd4 {[%emt 0:00:01]} 50. Qd5 {[%emt 0:00:51]} Kf6 {[%emt 0:01:01]} 51. Qg5+ {[%emt 0:00:23]} 1-0

[Event "35th Roquetas Festival 2024"]
[Site "Roquetas de Mar"]
[Date "2024.01.03"]
[Round "2.24"]
[White "Lara Mezcua, Alonso"]
[Black "Luque Saiz, Andres"]
[Result "0-1"]
[ECO "B13"]
[WhiteElo "2084"]
[BlackElo "2328"]
[Annotator "RC"]
[PlyCount "124"]
[EventDate "2024.01.02"]
[EventType "swiss"]
[EventCountry "ESP"]
[SourceTitle "playchess.com"]
[Source "ChessBase"]
[SourceQuality "1"]
[TimeControl "5400+30"]

1. e4 {[%emt 0:00:08]} c6 {[%emt 0:00:58]} 2. d4 {[%emt 0:00:34]} d5 {[%emt 0:00:08]} 3. exd5 {[%emt 0:00:07]} cxd5 {[%emt 0:00:06]} 4. Bd3 {[%emt 0:00:06]} Nc6 {[%emt 0:00:34]} 5. c3 {[%emt 0:00:07]} Qc7 {[%emt 0:00:28]} 6. h3 {[%emt 0:00:10]} e6 {[%emt 0:04:59]} 7. Nf3 {[%emt 0:00:55]} Bd6 {[%emt 0:00:09]} 8. O-O {[%emt 0:02:31]} Nge7 {[%emt 0:03:01]} 9. Re1 {[%emt 0:06:42]} Bd7 {[%emt 0:08:58]} 10. Bc2 {[%emt 0:10:14]} f6 {[%emt 0:02:21]} 11. c4 {[%emt 0:05:54]} dxc4 {[%emt 0:18:21]} 12. d5 {[%emt 0:16:10]} exd5 {[%emt 0:01:25]} 13. Qxd5 {[%emt 0:07:49]} Ne5 {[%emt 0:05:42]} 14. Qd1 {[%emt 0:01:31]} O-O-O {[%emt 0:03:25]} 15. Be3 {[%emt 0:08:28]} Bc6 {[%emt 0:13:15]} 16. Nbd2 {[%emt 0:03:13]} Nxf3+ {[%emt 0:04:14]} 17. gxf3 {[%emt 0:00:24]} Ng6 {[%emt 0:06:34]} 18. Qe2 {[%emt 0:08:21]} Rhe8 {[%emt 0:09:53]} 19. Be4 {[%emt 0:09:55]} Nf4 {[%emt 0:08:48]} 20. Qxc4 {[%emt 0:03:01]} Bxe4 {[%emt 0:02:16]} 21. Qxc7+ {[%emt 0:00:16]} Bxc7 {[%emt 0:00:04]} 22. fxe4 {[%emt 0:04:05]} Nxh3+ {[%emt 0:00:46]} 23. Kg2 {[%emt 0:00:16]} Nf4+ {[%emt 0:00:07]} 24. Kf3 {[%emt 0:01:51]} Nd3 {[%emt 0:00:44]} 25. Rh1 {[%emt 0:02:10]} h6 {[%emt 0:03:20]} 26. Rab1 {[%emt 0:00:43]} Ne5+ {[%emt 0:00:52]} 27. Ke2 {[%emt 0:00:51]} Ng4 {[%emt 0:00:45]} 28. f3 {[%emt 0:03:13]} Nxe3 {[%emt 0:01:13]} 29. Kxe3 {[%emt 0:00:03]} g5 {[%emt 0:00:56]} 30. Ke2 {[%emt 0:00:16]} Bf4 {[%emt 0:00:16]} 31. Rbc1+ {[%emt 0:01:26]} Kb8 {[%emt 0:00:08]} 32. Rcd1 {[%emt 0:00:50]} Bxd2 {[%emt 0:01:02]} 33. Rxd2 {[%emt 0:00:06]} Rxd2+ {[%emt 0:00:05]} 34. Kxd2 {[%emt 0:00:01]} Rh8 {[%emt 0:00:05]} 35. Rh5 {[%emt 0:01:52]} Kc7 {[%emt 0:00:36]} 36. f4 {[%emt 0:00:32]} Kd7 {[%emt 0:00:57]} 37. e5 {[%emt 0:00:34]} gxf4 {[%emt 0:00:52]} 38. exf6 {[%emt 0:00:12]} Ke6 {[%emt 0:00:19]} 39. f7 {[%emt 0:00:20]} Kxf7 {[%emt 0:00:18]} 40. Rf5+ {[%emt 0:00:05]} Kg6 {[%emt 0:00:02]} 41. Rxf4 {[%emt 0:00:07]} h5 {[%emt 0:00:06]} 42. Ke3 {[%emt 0:01:09]} Re8+ {[%emt 0:00:12]} 43. Kf2 {[%emt 0:01:20]} Rc8 {[%emt 0:00:36]} 44. Rb4 {[%emt 0:00:54]} b6 {[%emt 0:00:09]} 45. Kg3 {[%emt 0:00:12]} Kg5 {[%emt 0:00:25]} 46. Kh3 {[%emt 0:01:08]} Rc5 {[%emt 0:00:09]} 47. a4 {[%emt 0:00:15]} Rd5 {[%emt 0:00:34]} 48. Kg3 {[%emt 0:01:41]} Re5 {[%emt 0:00:45]} 49. Kh3 {[%emt 0:00:08]} Kf5 {[%emt 0:00:26]} 50. Kg3 {[%emt 0:00:22]} Ke6 {[%emt 0:00:34]} 51. Kh3 {[%emt 0:01:25]} Kd6 {[%emt 0:00:29]} 52. Kg3 {[%emt 0:00:09]} Kc5 {[%emt 0:00:48]} 53. Rb5+ {[%emt 0:00:08]} Kd4 {[%emt 0:00:28]} 54. Rb4+ {[%emt 0:00:01]} Kd3 {[%emt 0:01:09]} 55. Kh3 {[%emt 0:00:58]} Kc2 {[%emt 0:00:30]} 56. Kh4 {[%emt 0:00:36]} Rd5 {[%emt 0:00:05]} 57. Kg3 {[%emt 0:00:34]} Rd3+ {[%emt 0:00:05]} 58. Kh4 {[%emt 0:00:10]} Rb3 {[%emt 0:00:16]} 59. Rc4+ {[%emt 0:00:38]} Kxb2 {[%emt 0:00:04]} 60. Kxh5 {[%emt 0:00:05]} Ka3 {[%emt 0:00:05]} 61. Rc7 {[%emt 0:00:53]} a5 {[%emt 0:00:08]} 62. Rc4 {[%emt 0:00:15]} Rb4 {[%emt 0:00:05]} 0-1

[Event "35th Roquetas Festival 2024"]
[Site "Roquetas de Mar"]
[Date "2024.01.03"]
[Round "2.25"]
[White "Perea Fruet, Lorenzo"]
[Black "Montesinos Diaz, Luis"]
[Result "1-0"]
[ECO "B12"]
[WhiteElo "2323"]
[BlackElo "2050"]
[Annotator "ChessBase"]
[PlyCount "89"]
[EventDate "2024.01.02"]
[EventType "swiss"]
[EventCountry "ESP"]
[SourceTitle "playchess.com"]
[Source "ChessBase"]
[SourceQuality "1"]
[TimeControl "5400+30"]

1. e4 {[%emt 0:00:05]} c6 {[%emt 0:00:47]} 2. d4 {[%emt 0:00:15]} d5 {[%emt 0:00:05]} 3. f3 {[%emt 0:00:03]} dxe4 {[%emt 0:03:25]} 4. fxe4 {[%emt 0:00:57]} e5 {[%emt 0:01:50]} 5. Nf3 {[%emt 0:00:13]} Bg4 {[%emt 0:23:02]} 6. c3 {[%emt 0:01:27]} Nf6 {[%emt 0:01:05]} 7. Bc4 {[%emt 0:20:43]} Nbd7 {[%emt 0:02:42]} 8. O-O {[%emt 0:07:50]} Bd6 {[%emt 0:09:38]} 9. Bd3 {[%emt 0:05:22]} O-O {[%emt 0:01:19]} 10. Na3 {[%emt 0:01:23]} b5 {[%emt 0:09:10]} 11. Nc2 {[%emt 0:01:31]} Qb6 {[%emt 0:02:34]} 12. a4 {[%emt 0:03:39]} a6 {[%emt 0:02:29]} 13. Qe1 {[%emt 0:10:04]} c5 {[%emt 0:06:14]} 14. a5 {[%emt 0:20:35]} Qa7 {[%emt 0:01:31]} 15. Qg3 {[%emt 0:01:22]} Qc7 {[%emt 0:04:51]} 16. Qh4 {[%emt 0:06:12]} cxd4 {[%emt 0:08:09]} 17. cxd4 {[%emt 0:00:56]} Bxf3 {[%emt 0:03:10]} 18. gxf3 {[%emt 0:02:01]} exd4 {[%emt 0:00:42]} 19. f4 {[%emt 0:00:59]} Nc5 {[%emt 0:04:28]} 20. e5 {[%emt 0:00:27]} Nxd3 {[%emt 0:02:38]} 21. exf6 {[%emt 0:00:16]} Rfc8 {[%emt 0:01:41]} 22. Qg4 {[%emt 0:06:13]} g6 {[%emt 0:00:36]} 23. Nxd4 {[%emt 0:00:28]} Nxc1 {[%emt 0:02:33]} 24. Raxc1 {[%emt 0:00:25]} Bc5 {[%emt 0:01:45]} 25. Kh1 {[%emt 0:00:57]} Qb7+ {[%emt 0:00:30]} 26. Nf3 {[%emt 0:01:18]} Bd4 {[%emt 0:01:08]} 27. Rcd1 {[%emt 0:04:34]} Bxb2 {[%emt 0:01:13]} 28. Rd6 {[%emt 0:01:12]} Rd8 {[%emt 0:01:08]} 29. Rb6 {[%emt 0:00:46]} Qd5 {[%emt 0:00:44]} 30. Qg2 {[%emt 0:01:18]} Bc3 {[%emt 0:01:14]} 31. Rc1 {[%emt 0:01:34]} Bxa5 {[%emt 0:00:34]} 32. Rbc6 {[%emt 0:00:05]} Qe4 {[%emt 0:01:55]} 33. Ne5 {[%emt 0:01:13]} Qxf4 {[%emt 0:00:35]} 34. Nxf7 {[%emt 0:00:08]} Kxf7 {[%emt 0:00:43]} 35. Qa2+ {[%emt 0:00:04]} Kf8 {[%emt 0:00:08]} 36. Qxa5 {[%emt 0:00:17]} Qf3+ {[%emt 0:00:05]} 37. Kg1 {[%emt 0:00:07]} Rd1+ {[%emt 0:00:21]} 38. Rxd1 {[%emt 0:00:10]} Qxd1+ {[%emt 0:00:03]} 39. Kf2 {[%emt 0:00:09]} Qd4+ {[%emt 0:00:04]} 40. Kf1 {[%emt 0:00:22]} Qf4+ {[%emt 0:00:11]} 41. Kg1 {[%emt 0:00:04]} Qe3+ {[%emt 0:00:11]} 42. Kf1 {[%emt 0:00:12]} Qf3+ {[%emt 0:00:04]} 43. Kg1 {[%emt 0:00:05]} Qxc6 {[%emt 0:00:04]} 44. Qa3+ {[%emt 0:00:02]} Kf7 {[%emt 0:00:07]} 45. Qe7+ {[%emt 0:00:04]} 1-0

[Event "35th Roquetas Festival 2024"]
[Site "Roquetas de Mar"]
[Date "2024.01.03"]
[Round "2.26"]
[White "Perea Fruet, Federico"]
[Black "Alshameary Puente, Ismael"]
[Result "0-1"]
[ECO "B50"]
[WhiteElo "2005"]
[BlackElo "2317"]
[Annotator "RC"]
[PlyCount "76"]
[EventDate "2024.01.02"]
[EventType "swiss"]
[EventCountry "ESP"]
[SourceTitle "playchess.com"]
[Source "ChessBase"]
[SourceQuality "1"]
[TimeControl "5400+30"]

1. e4 {[%emt 0:00:02]} c5 {[%emt 0:00:06]} 2. Nf3 {[%emt 0:00:07]} d6 {[%emt 0:01:41]} 3. c3 {[%emt 0:00:07]} Nf6 {[%emt 0:00:08]} 4. h3 {[%emt 0:00:05]} Nc6 {[%emt 0:00:37]} 5. Bd3 {[%emt 0:00:05]} e5 {[%emt 0:05:35]} 6. O-O {[%emt 0:11:27]} g5 {[%emt 0:02:23]} 7. Nh2 {[%emt 0:06:52]} Be6 {[%emt 0:05:29]} 8. Bc2 {[%emt 0:06:56]} Rg8 {[%emt 0:02:11]} 9. g4 h5 {[%emt 0:06:57]} 10. f3 {[%emt 0:14:55]} Qd7 {[%emt 0:02:00]} 11. d3 {[%emt 0:02:32]} O-O-O {[%emt 0:01:05]} 12. Be3 {[%emt 0:02:16]} d5 {[%emt 0:04:59]} 13. Nd2 {[%emt 0:05:13]} Kb8 {[%emt 0:09:25]} 14. Qe2 {[%emt 0:03:18]} d4 {[%emt 0:01:19]} 15. Bf2 {[%emt 0:01:01]} Ne7 {[%emt 0:00:28]} 16. cxd4 {[%emt 0:07:03]} cxd4 {[%emt 0:03:54]} 17. Bb3 {[%emt 0:02:10]} Ng6 {[%emt 0:01:22]} 18. Rfc1 {[%emt 0:01:28]} Nf4 {[%emt 0:06:27]} 19. Qf1 {[%emt 0:01:08]} Rh8 {[%emt 0:01:07]} 20. Bg3 {[%emt 0:01:53]} Bb4 {[%emt 0:03:15]} 21. Bxf4 {[%emt 0:03:20]} gxf4 {[%emt 0:00:22]} 22. Bxe6 {[%emt 0:00:44]} Qxe6 {[%emt 0:01:08]} 23. Nc4 {[%emt 0:10:23]} hxg4 {[%emt 0:05:55]} 24. hxg4 {[%emt 0:01:24]} Nh7 {[%emt 0:00:13]} 25. a3 {[%emt 0:01:33]} Be7 {[%emt 0:02:55]} 26. Rc2 {[%emt 0:02:46]} Ng5 {[%emt 0:00:50]} 27. Rac1 {[%emt 0:01:19]} Rh3 {[%emt 0:02:16]} 28. Rf2 {[%emt 0:05:03]} Rdh8 {[%emt 0:00:35]} 29. Rcc2 {[%emt 0:00:36]} Bd8 {[%emt 0:15:14]} 30. b4 {[%emt 0:01:01]} Bc7 {[%emt 0:00:46]} 31. a4 {[%emt 0:03:34]} Qh6 {[%emt 0:01:15]} 32. Qe2 {[%emt 0:03:33]} Qh4 {[%emt 0:02:11]} 33. Kh1 {[%emt 0:01:41]} Qg3 {[%emt 0:03:04]} 34. a5 {[%emt 0:01:22]} Nxf3 {[%emt 0:01:21]} 35. Rxf3 {[%emt 0:00:14]} Rxh2+ {[%emt 0:00:07]} 36. Qxh2 {[%emt 0:00:14]} Qxf3+ {[%emt 0:00:28]} 37. Rg2 {[%emt 0:00:13]} Rxh2+ {[%emt 0:00:14]} 38. Kxh2 {[%emt 0:00:09]} Qxd3 {[%emt 0:00:10]} 0-1

[Event "35th Roquetas Festival 2024"]
[Site "Roquetas de Mar"]
[Date "2024.01.03"]
[Round "3.1"]
[White "Grigoryan, Karen H."]
[Black "Macak, Stefan"]
[Result "1-0"]
[ECO "B53"]
[WhiteElo "2643"]
[BlackElo "2354"]
[Annotator "TA"]
[PlyCount "99"]
[EventDate "2024.01.02"]
[EventType "swiss"]
[EventCountry "ESP"]
[SourceTitle "playchess.com"]
[Source "ChessBase"]
[SourceQuality "1"]
[TimeControl "5400+30"]

{[%evp 22,99,-26,-14,0,-58,-46,-64,-60,-66,-65,-74,-72,-67,-75,-61,0,-70,-60,-116,-18,-8,-19,-10,-9,-2,0,-18,18,0,0,0,0,-98,-92,-98,-95,-285,-272,-367,-378,-326,-291,-296,-262,-264,-204,-201,-129,-129,-86,-88,-62,-66,-71,-70,0,0,14,14,47,56,56,54,297,289,297,296,1056,943,1270,1034,1239,1118,29965,29961,29975,29976,29977,29978]} 1. e4 {[%emt 0:02:28]} c5 {[%emt 0:00:35]} 2. Nf3 {[%emt 0:00:08]} d6 {[%emt 0:00:11]} 3. d4 {[%emt 0:00:25]} cxd4 {[%emt 0:00:04]} 4. Qxd4 {[%emt 0:00:22]} Nc6 {[%emt 0:01:06]} 5. Bb5 {[%emt 0:00:10]} Bd7 {[%emt 0:00:09]} 6. Bxc6 {[%emt 0:00:07]} Bxc6 {[%emt 0:00:03]} 7. Nc3 {[%emt 0:00:10]} Nf6 {[%emt 0:00:24]} 8. Bg5 {[%emt 0:00:10]} e6 {[%emt 0:00:18]} 9. O-O-O {[%emt 0:00:09]} Be7 {[%emt 0:00:55]} 10. Rhe1 {[%emt 0:00:24]} O-O {[%emt 0:00:44]} 11. Kb1 {[%emt 0:00:28]} h6 {[%emt 0:03:27]} 12. Bh4 {[%emt 0:00:24]} b5 {[%emt 0:02:55][%cal Bb7b5,Bb5b4][%mdl 32] B53: Sicilian: 2...d6: Lines with Qxd4.} 13. Qd3 $5 {[%emt 0:15:29][%mdl 4] [#] A promising side line.} (13. Rd3 $11) 13... b4 $146 {[%emt 0:18:54]} ({Predecessor:} 13... Qb6 14. Nd4 b4 15. Nxc6 Qxc6 16. Nb5 Rfd8 17. f3 a5 18. g4 a4 19. g5 hxg5 20. Bxg5 {1-0 Skliarov,V (2383)-Strybuk,A (2378) Titled Tuesday intern op 23rd May Early blitz 2023 (8)}) 14. Nd4 {[%emt 0:00:15]} Bb7 {[%emt 0:06:40] Black is slightly better.} 15. Na4 {[%emt 0:00:21]} Qa5 {[%emt 0:07:09]} 16. b3 {[%emt 0:00:31]} Rfc8 {[%emt 0:08:45]} 17. f3 {[%emt 0:00:49]} Ba6 {[%emt 0:01:35]} 18. Qd2 {[%emt 0:00:27]} Rc7 {[%emt 0:04:37]} (18... Rab8 $15) 19. Rc1 {[%emt 0:03:05]} (19. a3 $11) 19... Rac8 {[%emt 0:01:45]} 20. Re3 {[%emt 0:02:21] [#]} (20. h3 $15) 20... Rc3 {[%emt 0:10:33]} 21. Be1 $1 $132 {[%emt 0:02:41][%mdl 2048] White is not keeping still} Rxe3 {[%emt 0:01:27]} 22. Qxe3 {[%emt 0:00:08]} d5 {[%emt 0:02:49] ...dxe4 is the strong threat.} 23. e5 {[%emt 0:00:08]} Nd7 {[%emt 0:00:23]} 24. c3 {[%emt 0:01:39]} (24. a3 $5) 24... Qc7 {[%emt 0:06:03]} 25. f4 {[%emt 0:00:28]} (25. cxb4 $5 {[%cal Rc1c7]} Bd3+ 26. Kb2 Qxc1+ 27. Qxc1 Rxc1 28. Kxc1 $11) 25... bxc3 {[%emt 0:01:44]} 26. Rxc3 {[%emt 0:00:37]} Qb7 {[%emt 0:01:04]} 27. f5 {[%emt 0:01:43]} (27. Rxc8+ $11 {keeps the balance.} Qxc8 28. Qf3) 27... Bg5 $17 {[%emt 0:01:44]} 28. Qg3 {[%emt 0:00:30]} Rc4 {[%emt 0:10:33]} 29. fxe6 $2 {[%emt 0:01:13]} (29. Rxc4 $2 dxc4 30. fxe6 Qe4+ 31. Nc2 fxe6 $19) (29. h4 $17 Be7 30. Bf2 (30. Rxc4 $2 dxc4 31. f6 Qe4+ 32. Kc1 Bf8 $17)) 29... Rxd4 $19 {[%emt 0:01:08]} 30. exd7 {[%emt 0:01:41]} Qxd7 {[%emt 0:00:25]} ({Weaker is} 30... Rxa4 31. e6 (31. Rc8+ Kh7 $15) 31... Re4 32. Rc8+ $16) 31. Nc5 {[%emt 0:01:19]} Qf5+ {[%emt 0:00:23]} 32. Kb2 {[%emt 0:00:12] [#]} Rd1 $1 {[%emt 0:04:07]} 33. Nxa6 {[%emt 0:01:35]} Qb1+ {[%emt 0:00:40]} 34. Ka3 {[%emt 0:00:06][%cal Oe5e6]} Rxe1 {[%emt 0:01:06]} 35. Qd3 {[%emt 0:01:59]} Be7+ {[%emt 0:01:12]} 36. b4 {[%emt 0:01:10] Black must now prevent Rc8+.} Qxd3 {[%emt 0:00:24]} 37. Rxd3 {[%emt 0:00:05]} Rxe5 $17 {[%emt 0:00:08][%mdl 4096] Endgame KRB-KRN} 38. h3 {[%emt 0:00:53]} Bd8 {[%emt 0:01:56]} ({Black should play} 38... Bd6 $15) 39. Kb3 {[%emt 0:00:57]} Bb6 {[%emt 0:00:40]} 40. a4 {[%emt 0:00:15][%cal Ba2a4,Ba4a5][%mdl 32]} Re2 {[%emt 0:01:03]} (40... Rg5 $5 {[%cal Rg5g2]}) 41. a5 {[%emt 0:00:14]} Bg1 {[%emt 0:00:40]} 42. g4 {[%emt 0:00:06]} Re3 $2 {[%emt 0:00:15]} (42... g6 $14) 43. Rxe3 $18 {[%emt 0:00:20]} Bxe3 {[%emt 0:00:01] KB-KN} 44. Nc7 {[%emt 0:01:29]} Kh7 $2 {[%emt 0:00:15]} (44... d4 $2 45. Kc4 $18) (44... Bf2 45. Nxd5 Kf8) 45. b5 {[%emt 0:01:05]} h5 {[%emt 0:01:13]} 46. Nxd5 {[%emt 0:00:26]} Bf2 {[%emt 0:00:18]} 47. b6 {[%emt 0:00:09]} Bxb6 {[%emt 0:00:57]} 48. Nxb6 {[%emt 0:00:08] White mates.} ({And not} 48. axb6 axb6 49. Nxb6 (49. gxh5 Kh6 $11) 49... hxg4 50. hxg4 Kg6 $11) 48... hxg4 {[%emt 0:00:32]} 49. hxg4 {[%emt 0:00:07]} Kg6 {[%emt 0:00:09] [#]} 50. a6 $1 {[%emt 0:01:57] White used his chance.   Weighted Error Value: White=0.23 (precise) /Black=0.46} 1-0

[Event "35th Roquetas Festival 2024"]
[Site "Roquetas de Mar"]
[Date "2024.01.03"]
[Round "3.2"]
[White "Suarez Uriel, Adrian"]
[Black "Peng, Li Min"]
[Result "1-0"]
[ECO "B47"]
[WhiteElo "2365"]
[BlackElo "2575"]
[Annotator "TA"]
[PlyCount "53"]
[EventDate "2024.01.02"]
[EventType "swiss"]
[EventCountry "ESP"]
[SourceTitle "playchess.com"]
[Source "ChessBase"]
[SourceQuality "1"]
[TimeControl "5400+30"]

{[%evp 17,53,0,0,0,13,8,0,0,0,0,0,0,5,0,25,37,31,27,30,22,14,16,231,233,216,220,681,697,1600,226,592,579,561,553,29987,29988,29991,1114]} 1. e4 c5 2. Nf3 e6 3. d4 cxd4 4. Nxd4 Nc6 5. Nc3 Qc7 6. f4 a6 7. Nxc6 bxc6 8. Bd3 d5 9. O-O Nf6 10. Be3 {B46: Sicilian: Taimanov: 5 Nc3 a6.} Rb8 {[#]} 11. e5 $146 ({Predecessor:} 11. Rb1 Be7 12. Qf3 Bb7 13. Qg3 O-O 14. e5 Nd7 15. Ne2 c5 16. c3 f6 17. exf6 Nxf6 18. Qh3 Bc8 19. Ng3 e5 {0-1 Wimmer,M (1851)-Dotzer,L (2165) EU-ch U14 rapid 2023 (3)}) 11... Nd7 12. Na4 {The position is equal.} c5 13. c4 d4 14. Bd2 Bb7 15. b3 Be7 16. Qh5 {f5 would be deadly.} g6 17. Qh6 Bf8 {Wards off Qg7} 18. Qh3 Bg7 19. Rae1 {[%cal Of4f5,Ba1e1,Be1e5,Be5d5][%mdl 32] With the idea f5!} Bc6 $2 {[#] This costs Black the game.} (19... O-O $1 $11 {and Black has nothing to worry.}) 20. f5 $1 $18 {[%mdl 512]} gxf5 21. Bxf5 Bxe5 $2 {[#]} (21... exf5 22. e6 O-O) 22. Bxe6 $1 {[%mdl 512]} fxe6 (22... O-O 23. Bf5) 23. Qxe6+ (23. Bg5 $142 {[%cal Rh3e6]} Nf8 24. Rxf8+ {[%mdl 64] Clearance} Kxf8 25. Rf1+ Qf7 26. Qxe6 Qxf1+ 27. Kxf1) 23... Kd8 {[#]} 24. Rxe5 {[%cal Of1f7][%mdl 576] Threatens to win with Rf7! Deflection} Bxa4 25. bxa4 {White threatens Rd5 and mate.} Rb2 26. Rd5 Rxd2 27. Qf6+ {Excellently played by Suarez Uriel!   Weighted Error Value: White=0.42/Black=0.83} (27. Rf7 $142 Rd1+ 28. Kf2 Kc8 29. Rdxd7 (29. Rfxd7 $2 {gets mated.} Qf4+ 30. Ke2 Qf1#) 29... Rd2+ 30. Ke1 Kb8 31. Rxc7 Rb2 32. Rc8+ Rxc8 33. Qd6+ Ka8 34. Qxa6+ Kb8 35. Qa7#) 1-0